bitfinex/quotes_ETHUSD_20251015
["timestamp","ask_amount","ask_price","bid_price","bid_amount"]
[1760552715189,0.001,4007.5,4006.5,0.4405]
[1760552715394,2.49561204,4007.1,4006.5,0.4405]
[1760552715794,0.001,4007.5,4006.7,1.728]
[1760552716076,2.49538565,4007.4,4006.7,2.49580634]
[1760552716269,0.001,4007.5,4006.5,0.4405]
[1760552716467,0.001,4007.5,4006.8,2.49575185]
[1760552716665,0.001,4007.5,4006.6,1.728]
[1760552716866,2.49539104,4007.4,4006.7,2.96225875]
[1760552717077,2.49634091,4007.5,4006.8,2.49575068]
[1760552717667,0.001,4007.5,4006.7,2.9622451]
[1760552717873,0.001,4007.5,4006.7,2.19444171]
[1760552718092,2.49636137,4007.5,4006.8,2.4956975]
[1760552718313,0.001,4007.5,4006.8,2.49574256]
[1760552718489,0.001,4007.5,4006.8,2.93624256]
[1760552718990,2.49538354,4007.4,4006.8,0.4405]
[1760552719156,2.49547019,4007.3,4006.8,0.4405]
[1760552719362,2.49633031,4007.5,4006.8,0.4405]
[1760552719565,2.49538354,4007.4,4006.8,0.4405]
[1760552719763,2.49538805,4007.4,4006.8,0.4405]
[1760552719966,2.49554641,4007.2,4006.8,0.4405]
[1760552720476,2.49554641,4007.2,4006.8,0.4425]
[1760552720990,0.001,4007.5,4006.8,0.4425]
[1760552721183,0.001,4007.5,4006.8,0.002]
[1760552721391,2.49539529,4007.4,4006.8,0.002]
[1760552721698,2.49555085,4007.2,4006.8,0.002]
[1760552722126,2.49569492,4006.9,4006.8,0.002]
[1760552722327,2.495647,4007.0,4006.8,0.002]
[1760552722896,2.49569492,4006.9,4006.8,0.002]
[1760552723700,2.52072009,4006.9,4006.8,0.002]
[1760552724219,2.49569492,4006.9,4006.8,0.002]
[1760552725134,2.61969492,4006.9,4006.8,0.002]
[1760552725859,0.001,4007.5,4006.8,0.4395]
[1760552726059,2.49538354,4007.4,4006.8,0.4395]
[1760552726566,0.001,4007.5,4007.3,0.2368]
[1760552728762,0.001,4007.5,4007.0,0.2368]
[1760552729061,0.001,4007.5,4007.1,2.49557036]
[1760552729359,0.001,4007.5,4007.4,4.85698354]
[1760552729861,0.001,4007.5,4007.4,5.29448354]
[1760552731580,0.001,4007.5,4007.4,2.1655]
[1760552731779,0.001,4007.5,4007.4,1.728]
[1760552733261,0.001,4007.5,4007.4,2.1655]
[1760552734189,0.001,4007.5,4007.4,2.63408937]
[1760552734892,0.001,4007.5,4007.4,2.19658937]
[1760552735200,0.001,4007.5,4007.4,5.12947291]
[1760552735779,0.001,4007.5,4007.4,5.25347291]
[1760552735991,0.001,4007.5,4007.4,5.12947291]
[1760552738257,0.001,4007.5,4007.4,5.76307291]
[1760552739272,0.001,4007.5,4007.4,8.32507291]
[1760552740290,0.001,4007.5,4007.4,5.76307291]
[1760552740460,0.001,4007.5,4007.4,8.32407291]
[1760552740657,0.001,4007.5,4007.4,4.69197291]
[1760552741605,0.001,4007.5,4007.4,5.12947291]
[1760552742688,0.001,4007.5,4007.4,5.76307291]
[1760552743117,0.001,4007.5,4007.4,8.32307291]
[1760552743519,0.001,4007.5,4007.4,5.76307291]
[1760552743718,0.001,4007.5,4007.4,8.32307291]
[1760552744022,0.001,4007.5,4007.4,5.76307291]
[1760552744226,0.001,4007.5,4007.4,8.32307291]
[1760552744395,0.001,4007.5,4007.4,5.76307291]
[1760552745923,0.001,4007.5,4007.4,5.88707291]
[1760552746231,0.001,4007.5,4007.4,5.76307291]
[1760552746735,0.001,4007.5,4007.4,8.32207291]
[1760552746939,0.001,4007.5,4007.4,5.76307291]
[1760552747222,0.001,4007.5,4007.4,8.32207291]
[1760552747442,0.001,4007.5,4007.4,5.76307291]
[1760552748802,0.001,4007.5,4007.4,8.32207291]
[1760552749005,0.001,4007.5,4007.4,8.32107291]
[1760552749212,0.001,4007.5,4007.4,6.25830088]
[1760552749625,0.001,4007.5,4007.4,5.76307291]
[1760552750205,0.001,4007.5,4007.4,5.32557291]
[1760552750411,0.001,4007.5,4007.4,5.76307291]
[1760552750622,0.001,4007.5,4007.4,8.32107291]
[1760552751124,0.001,4007.5,4007.4,5.76307291]
[1760552751812,0.001,4007.5,4007.4,8.32107291]
[1760552752154,0.001,4007.5,4007.4,5.76307291]
[1760552752335,0.001,4007.5,4007.4,8.32107291]
[1760552752632,0.001,4007.5,4007.4,7.88357291]
[1760552752846,0.001,4007.5,4007.4,5.32557291]
[1760552753016,0.001,4007.5,4007.4,7.88357291]
[1760552753220,0.001,4007.5,4007.4,8.32437291]
[1760552753439,0.001,4007.5,4007.4,5.76637291]
[1760552753637,0.001,4007.5,4007.4,8.32437291]
[1760552753953,0.001,4007.5,4007.4,7.88357291]
[1760552754239,0.001,4007.5,4007.4,2.49538354]
[1760552755755,0.001,4007.5,4007.4,16.00462053]
[1760552755968,0.001,4007.5,4007.4,15.74502053]
[1760552756672,0.001,4007.5,4007.4,18.30302053]
[1760552756827,0.001,4007.5,4007.4,15.74502053]
[1760552757245,0.001,4007.5,4007.4,17.56907281]
[1760552757458,0.001,4007.5,4007.4,18.06999765]
[1760552757660,0.001,4007.5,4007.4,17.94599765]
[1760552759070,0.001,4007.5,4007.4,8.94505767]
[1760552759277,0.001,4007.5,4007.4,6.68103582]
[1760552759628,0.001,4007.5,4007.4,9.23903582]
[1760552759857,0.001,4007.5,4007.4,6.68103582]
[1760552760028,0.001,4007.5,4006.9,0.002]
[1760552760425,0.001,4007.5,4007.4,3.12898354]
[1760552760630,0.001,4007.5,4007.4,3.60033737]
[1760552760938,0.001,4007.5,4007.4,5.30338354]
[1760552761267,0.0708,4009.0,4008.6,2.49459961]
[1760552761766,0.0708,4009.0,4008.5,1.728]
[1760552761950,2.56529291,4008.9,4008.2,2.49484324]
[1760552762465,2.49535519,4007.5,4007.2,0.75002343]
[1760552762678,0.0708,4007.4,4006.9,0.002]
[1760552762863,2.4945743,4008.7,4006.9,0.002]
[1760552762864,0.0708,4007.8,4007.1,1.728]
[1760552763043,0.0708,4007.8,4007.0,0.24997523]
[1760552763044,2.49521119,4007.7,4007.0,0.24997523]
[1760552763247,0.0708,4007.8,4007.0,0.24997523]
[1760552763467,2.49540127,4007.4,4006.9,0.002]
[1760552763967,0.4825356,4016.5,4006.9,0.002]
[1760552763968,0.0708,4007.3,4006.9,0.002]
[1760552764169,0.0708,4007.2,4006.9,0.002]
[1760552764376,0.0708,4007.7,4006.9,0.002]
[1760552765054,2.49533629,4007.5,4006.9,0.002]
[1760552765381,2.49538354,4007.4,4006.9,0.002]
[1760552765586,2.4945743,4008.7,4006.9,0.002]
[1760552765760,0.0708,4008.8,4007.7,2.49513569]
[1760552765962,0.0708,4008.7,4007.6,2.49522693]
[1760552766269,2.56538901,4008.7,4007.9,2.49502646]
[1760552766469,2.49721104,4009.3,4007.3,2.4005]
[1760552766470,0.003,4009.3,4007.3,0.2261]
[1760552766680,2.4948355,4008.3,4007.5,2.49531635]
[1760552766878,2.49723118,4009.3,4007.3,1.728]
[1760552766879,2.59075025,4008.2,4007.3,1.728]
[1760552767080,0.0708,4008.2,4006.9,0.002]
[1760552767383,2.49508109,4007.9,4007.1,1.728]
[1760552767562,2.49502779,4008.0,4007.4,1.852]
[1760552767763,2.61895924,4008.1,4007.4,2.61937742]
[1760552768189,0.124,4008.1,4007.6,2.49525532]
[1760552768394,0.124,4008.1,4007.5,2.52025545]
[1760552768576,2.56563753,4008.3,4007.7,0.124]
[1760552768883,0.0708,4008.3,4007.7,0.124]
[1760552769387,0.0708,4008.3,4007.1,1.728]
[1760552769586,0.1948,4008.2,4007.5,0.124]
[1760552769749,2.49499478,4008.1,4007.5,0.124]
[1760552769956,2.68970146,4008.2,4007.5,0.124]
[1760552770155,2.68970146,4008.2,4007.6,1.728]
[1760552770374,2.49495019,4008.1,4007.6,1.728]
[1760552770578,2.49501561,4008.0,4007.5,0.124]
[1760552771096,2.495259,4007.6,4007.5,0.124]
[1760552771277,2.61917671,4007.8,4007.2,0.124]
[1760552771593,0.124,4007.8,4007.2,2.61950009]
[1760552771905,2.61916109,4007.8,4007.2,0.124]
[1760552772285,0.124,4007.8,4007.2,1.852]
[1760552772595,2.61916039,4007.8,4007.2,0.124]
[1760552772966,0.124,4007.8,4007.2,2.61950685]
[1760552773166,2.61917539,4007.8,4007.2,0.124]
[1760552773361,0.124,4007.8,4007.2,1.852]
[1760552773585,0.0708,4007.7,4007.2,0.124]
[1760552773994,2.49539329,4007.4,4007.2,0.124]
[1760552774194,2.49545214,4007.3,4006.9,0.126]
[1760552774494,2.69007762,4007.6,4006.9,0.126]
[1760552774495,2.49540006,4007.4,4006.9,0.126]
[1760552774713,2.49533708,4007.5,4006.9,1.854]
[1760552774898,2.49534042,4007.5,4006.9,0.126]
[1760552775282,0.1948,4007.6,4006.9,1.854]
[1760552775482,2.49533807,4007.5,4006.9,1.854]
[1760552775802,2.61927815,4007.6,4006.9,2.62169357]
[1760552776799,0.001,4008.2,4007.5,0.2261]
[1760552777099,0.001,4008.2,4007.7,2.49519674]
[1760552777301,0.001,4008.2,4008.0,2.49498829]
[1760552777477,0.001,4008.2,4007.9,0.124]
[1760552778007,0.001,4008.2,4007.4,2.49532981]
[1760552778008,0.0718,4008.2,4007.4,2.49532981]
[1760552778172,0.001,4008.2,4007.6,0.124]
[1760552778373,0.001,4008.2,4007.7,1.728]
[1760552778923,2.56674045,4008.2,4007.6,0.124]
[1760552779104,0.001,4008.2,4007.6,0.124]
[1760552779425,0.001,4008.2,4007.8,2.49513448]
[1760552779792,0.001,4008.2,4007.6,4.34724133]
[1760552780222,2.49588888,4008.2,4007.6,1.852]
[1760552780530,2.49588888,4008.2,4007.6,4.34725011]
[1760552781023,0.001,4008.2,4007.6,0.124]
[1760552781321,0.001,4008.2,4007.6,2.61925447]
[1760552781530,0.001,4008.2,4007.6,0.124]
[1760552781823,0.001,4008.2,4007.9,2.49503247]
[1760552782035,0.001,4008.2,4007.8,2.49511517]
[1760552782524,0.001,4008.2,4008.0,2.49496897]
[1760552782690,0.001,4008.2,4007.9,2.93765162]
[1760552782896,0.001,4008.2,4008.1,0.2286]
[1760552783216,0.001,4008.2,4008.1,2.72354773]
[1760552783394,0.001,4008.2,4008.1,5.42840499]
[1760552787419,0.001,4008.2,4008.1,8.62000499]
[1760552787623,0.001,4008.2,4008.1,6.06200499]
[1760552787853,0.001,4008.2,4008.1,8.62000499]
[1760552788246,0.001,4008.2,4008.1,6.06200499]
[1760552788446,0.001,4008.2,4008.1,8.62000499]
[1760552788622,0.001,4008.2,4008.1,6.06200499]
[1760552789023,0.001,4008.2,4008.1,8.62000499]
[1760552789224,0.001,4008.2,4008.1,6.06200499]
[1760552790058,0.001,4008.2,4008.0,0.124]
[1760552790534,0.001,4008.2,4008.0,1.852]
[1760552790734,0.001,4008.2,4008.0,0.124]
[1760552791123,0.001,4008.2,4008.0,1.852]
[1760552791624,0.001,4008.2,4008.0,2.61900845]
[1760552792825,0.001,4008.2,4008.0,0.124]
[1760552793028,2.49502028,4008.0,4007.2,2.49550808]
[1760552793227,2.49502028,4008.0,4007.2,4.22350808]
[1760552793553,2.49509303,4007.9,4007.2,1.728]
[1760552793861,0.02502517,4007.8,4006.9,0.51394875]
[1760552794064,2.49500998,4008.0,4007.2,2.49545373]
[1760552794370,2.49507795,4007.9,4007.2,2.49545373]
[1760552795467,2.49502592,4008.0,4007.3,2.49543184]
[1760552795952,0.001,4008.2,4007.1,0.2306]
[1760552796131,2.49503444,4008.0,4007.3,2.49540447]
[1760552796336,0.001,4008.2,4007.3,2.49540447]
[1760552796337,0.001,4008.2,4008.1,2.49494773]
[1760552796564,0.001,4008.2,4008.1,7.6680972]
[1760552796764,0.001,4008.2,4008.1,5.52774773]
[1760552798181,0.001,4008.2,4008.1,8.08574773]
[1760552798532,0.001,4008.2,4008.1,5.52774773]
[1760552798739,0.001,4008.2,4008.1,7.36178887]
[1760552799080,0.003,4010.1,4009.2,2.49426319]
[1760552799081,0.0708,4010.0,4009.2,2.49426319]
[1760552799365,0.0708,4010.0,4009.2,4.22226319]
[1760552799672,0.0708,4010.0,4009.2,4.66486319]
[1760552799979,0.0708,4010.0,4009.2,1.728]
[1760552800141,2.49387134,4009.9,4009.2,1.728]
[1760552800538,2.49387134,4009.9,4009.2,4.22226319]
[1760552800737,0.0708,4010.0,4009.2,4.47915892]
[1760552800966,0.0708,4010.0,4009.2,4.92175892]
[1760552801875,0.0708,4010.0,4009.2,1.98489573]
[1760552802045,2.49389859,4009.8,4009.2,0.25689573]
[1760552802446,0.02502517,4009.7,4008.7,0.6336]
[1760552802756,2.49406056,4009.6,4008.8,4.22251207]
[1760552802972,0.1948,4009.9,4009.2,0.124]
[1760552803139,0.1948,4009.9,4008.2,10.31763699]
[1760552803140,0.0708,4009.2,4007.7,0.4426]
[1760552803339,0.0708,4009.2,4007.1,1.54729701]
[1760552803340,2.61846302,4008.9,4008.2,0.124]
[1760552803536,2.61846302,4008.9,4007.9,2.49501021]
[1760552803537,2.49470946,4008.5,4007.5,2.49531796]
[1760552803737,2.49470946,4008.5,4008.0,0.124]
[1760552804070,2.49476621,4008.4,4008.0,0.124]
[1760552804748,0.02502517,4008.3,4007.6,0.2937918]
[1760552804944,0.0708,4008.4,4007.8,0.124]
[1760552805141,0.02502517,4008.3,4007.8,0.124]
[1760552805478,0.02502517,4008.3,4007.3,2.49543759]
[1760552805479,0.02502517,4008.3,4007.1,0.002]
[1760552805772,2.4951788,4007.8,4007.4,0.124]
[1760552805971,2.49509141,4007.9,4007.4,0.124]
[1760552806159,2.49514976,4007.8,4007.4,0.124]
[1760552806473,2.49519674,4007.7,4007.1,0.002]
[1760552806670,0.124,4007.6,4007.1,0.002]
[1760552806861,2.61927167,4007.6,4007.1,0.002]
[1760552807060,2.49538234,4007.5,4007.1,0.002]
[1760552807268,2.56613211,4007.5,4007.1,0.002]
[1760552807676,2.56613701,4007.5,4007.1,0.002]
[1760552807875,2.49389986,4009.8,4007.4,0.2286]
[1760552808074,0.0708,4009.2,4007.5,1.728]
[1760552808273,2.49471227,4008.5,4007.5,4.22330584]
[1760552808481,2.49471227,4008.5,4007.5,4.71275642]
[1760552808976,2.49471227,4008.5,4007.8,2.49511464]
[1760552809173,2.49458746,4008.7,4007.9,2.49502637]
[1760552809479,2.49465276,4008.6,4007.9,2.49502637]
[1760552809678,2.49465276,4008.6,4007.7,2.49514379]
[1760552809979,2.49465276,4008.6,4007.8,2.49509177]
[1760552810280,2.49465276,4008.6,4007.9,2.49505925]
[1760552810687,2.4947124,4008.5,4007.8,2.49511392]
[1760552810979,0.0708,4008.5,4007.3,1.728]
[1760552811158,0.0708,4008.5,4007.5,2.49532127]
[1760552811159,2.56556034,4008.5,4007.5,2.49532127]
[1760552811356,0.0708,4008.5,4007.1,0.2271]
[1760552811559,2.49725006,4009.3,4007.1,0.2271]
[1760552811560,2.49518986,4007.8,4007.1,0.2271]
[1760552811860,2.49506547,4008.0,4007.2,2.49550439]
[1760552812057,2.49525554,4007.7,4007.1,0.002]
[1760552812289,2.49532081,4007.6,4007.1,0.002]
[1760552812660,2.49538169,4007.5,4007.1,0.002]
[1760552812951,2.49527213,4007.6,4007.1,0.002]
[1760552813451,2.49532393,4007.5,4007.1,0.002]
[1760552814278,2.49513488,4007.8,4007.1,0.002]
[1760552814279,2.49527928,4007.6,4007.1,0.002]
[1760552815386,2.4952131,4007.7,4007.1,0.002]
[1760552815561,2.49528784,4007.6,4007.1,0.002]
[1760552815762,2.49550808,4007.2,4007.1,0.002]
[1760552816561,2.49545985,4007.3,4007.1,0.002]
[1760552817690,2.49545758,4007.3,4007.1,0.002]
[1760552817892,0.0708,4007.8,4007.1,0.002]
[1760552817893,0.0738,4009.3,4007.2,0.6687]
[1760552818091,2.49501373,4008.0,4007.2,0.6687]
[1760552818290,2.49496106,4008.1,4007.3,2.49543846]
[1760552818468,0.001,4008.2,4007.2,0.6687]
[1760552818672,2.49495408,4008.1,4007.4,2.49537423]
[1760552819292,2.49495759,4008.1,4007.4,2.49537423]
[1760552819680,0.001,4008.2,4007.2,3.16419943]
[1760552819681,0.001,4008.2,4007.2,0.6687]
[1760552820009,0.0708,4008.1,4007.1,0.002]
[1760552820212,2.49494773,4008.1,4007.1,0.2296]
[1760552820364,2.49509356,4007.9,4007.2,2.49550021]
[1760552820558,2.49588844,4008.2,4007.3,2.49542726]
[1760552820784,2.49500525,4008.1,4007.3,2.49539744]
[1760552821095,2.49589291,4008.2,4007.4,0.4411]
[1760552821289,2.49589291,4008.2,4007.3,2.49544437]
[1760552821488,2.49506787,4008.0,4007.3,2.49544437]
[1760552821788,0.02502517,4007.9,4007.1,0.2296]
[1760552821990,2.49525865,4007.7,4007.1,0.2296]
[1760552822165,0.001,4008.2,4007.1,0.2296]
[1760552822361,2.49514525,4007.8,4007.1,2.72516198]
[1760552822593,2.49496799,4008.1,4007.1,3.46456383]
[1760552822822,0.001,4008.2,4007.2,0.4411]
[1760552823259,0.001,4008.2,4007.3,2.49539862]
[1760552823465,2.49494773,4008.1,4007.2,0.4411]
[1760552823676,2.49502789,4008.0,4007.3,2.49543536]
[1760552825211,0.001,4008.2,4007.2,0.4411]
[1760552825384,2.49508645,4007.9,4007.2,2.49549996]
[1760552826306,2.49502316,4008.0,4007.3,2.49543924]
[1760552827012,2.49594665,4008.2,4007.5,0.6336]
[1760552827013,0.001,4008.2,4007.5,0.6336]
[1760552827182,0.001,4008.2,4007.8,2.49508801]
[1760552827510,0.001,4008.2,4007.6,2.936359]
[1760552827511,0.001,4008.2,4007.6,0.4411]
[1760552827811,0.001,4008.2,4007.6,2.93634979]
[1760552828111,0.001,4008.2,4007.9,0.124]
[1760552828280,0.001,4008.2,4008.1,0.2276]
[1760552828686,0.001,4008.2,4008.1,0.6687]
[1760552829582,0.001,4008.2,4008.1,3.49242461]
[1760552829933,0.001,4008.2,4008.1,3.61642461]
[1760552830679,0.001,4008.2,4008.1,5.97802461]
[1760552831331,0.001,4008.2,4008.1,8.53502461]
[1760552831718,0.001,4008.2,4008.1,5.97802461]
[1760552832534,0.001,4008.2,4008.1,5.34442461]
[1760552833127,0.001,4008.2,4008.1,1.852]
[1760552833324,0.001,4008.2,4008.1,1.728]
[1760552833633,0.001,4008.2,4007.9,0.124]
[1760552834239,2.49593074,4008.2,4007.9,0.124]
[1760552834445,0.001,4008.2,4007.6,0.124]
[1760552834798,0.001,4008.2,4007.1,0.2296]
[1760552834799,0.001,4008.2,4007.5,0.4411]
[1760552835448,0.001,4008.2,4007.2,1.728]
[1760552835449,2.49506839,4008.0,4007.2,1.728]
[1760552835650,0.001,4008.2,4007.4,2.49538222]
[1760552835819,0.001,4008.2,4007.2,2.49549882]
[1760552835820,2.49505628,4008.0,4007.2,2.49549882]
[1760552836016,0.001,4008.2,4008.1,0.6336]
[1760552836234,0.001,4008.2,4008.1,5.1090972]
[1760552836544,0.001,4008.2,4008.1,5.52524773]
[1760552836704,0.003,4009.3,4008.8,2.49448822]
[1760552836904,0.003,4009.3,4008.9,0.02494449]
[1760552837133,0.003,4009.3,4009.1,2.49431438]
[1760552837323,0.003,4009.3,4009.2,0.4411]
[1760552837727,0.003,4009.3,4009.1,2.49431438]
[1760552837902,0.003,4009.3,4009.0,2.49438072]
[1760552838100,0.003,4009.3,4009.1,2.49432329]
[1760552838328,0.003,4009.3,4009.2,2.49426319]
[1760552838525,0.003,4009.3,4009.2,2.51920582]
[1760552838737,0.003,4009.3,4009.2,2.93536319]
[1760552839145,0.003,4009.3,4009.2,3.47833394]
[1760552840538,0.003,4009.3,4009.2,2.93536319]
[1760552840940,0.003,4009.3,4009.2,2.96030582]
[1760552841748,0.003,4009.3,4009.2,2.93536319]
[1760552842420,0.003,4009.3,4009.2,2.49426319]
[1760552842617,0.003,4009.3,4009.1,0.02494325]
[1760552842846,0.003,4009.3,4009.1,2.98662297]
[1760552843030,2.49724905,4009.3,4008.7,0.6336]
[1760552843236,0.003,4009.3,4008.7,4.85615266]
[1760552843430,0.003,4009.3,4008.8,2.49449172]
[1760552844118,0.003,4009.3,4009.1,2.49429287]
[1760552844324,0.003,4009.3,4008.9,2.9618434]
[1760552844553,0.003,4009.3,4008.9,0.4674]
[1760552844720,0.003,4009.3,4009.1,0.124]
[1760552845463,0.003,4009.3,4009.2,2.49426319]
[1760552845625,0.003,4010.1,4010.0,4.85536558]
[1760552846059,0.003,4010.1,4010.0,5.32276558]
[1760552846279,2.4926462,4011.9,4011.0,2.49309694]
[1760552846479,2.4926462,4011.9,4010.8,2.49325781]
[1760552846480,2.4926462,4011.9,4011.1,2.70728046]
[1760552846678,1.728,4012.1,4011.1,0.2142]
[1760552846679,2.49266125,4011.8,4011.1,0.2142]
[1760552847243,2.49266125,4011.8,4011.1,2.70728066]
[1760552847445,2.49216615,4012.6,4011.1,0.2142]
[1760552847682,2.49264599,4011.9,4011.1,0.2142]
[1760552847985,2.4926665,4011.8,4011.1,0.2142]
[1760552848397,1.728,4012.3,4011.1,0.2142]
[1760552848682,2.49275693,4011.7,4011.1,0.2142]
[1760552849391,2.49278171,4011.6,4011.1,0.2142]
[1760552849590,1.728,4012.3,4011.1,0.2142]
[1760552849885,2.49270182,4011.8,4011.1,0.2142]
[1760552850105,2.4927912,4011.6,4011.1,0.2142]
[1760552850605,2.49270836,4011.8,4011.1,0.6816]
[1760552850805,2.49282016,4011.6,4011.1,0.2142]
[1760552851402,2.49272816,4011.7,4011.1,0.2142]
[1760552851692,1.728,4012.4,4011.2,2.49297165]
[1760552851871,2.49257606,4012.0,4011.2,2.49297165]
[1760552852066,2.49313037,4011.1,4010.7,0.2142]
[1760552852268,2.49309872,4011.1,4010.5,0.6336]
[1760552852877,2.49302877,4011.2,4010.5,1.18727696]
[1760552853073,2.49260431,4011.9,4010.5,1.18727696]
[1760552853273,2.4931058,4011.1,4010.5,1.18727696]
[1760552853476,2.49325371,4010.9,4010.4,1.728]
[1760552853667,2.49282263,4011.6,4010.4,1.728]
[1760552853863,2.49327964,4010.8,4010.4,1.728]
[1760552854100,2.4924603,4012.1,4010.2,0.2142]
[1760552854312,1.728,4013.0,4010.2,0.6816]
[1760552854507,2.49298309,4011.3,4010.3,0.2648737]
[1760552855004,2.49312513,4011.1,4010.4,2.49350959]
[1760552855205,2.49303369,4011.2,4010.4,2.4935045]
[1760552855373,2.49253964,4012.0,4010.5,2.49344826]
[1760552855575,4.22021712,4012.5,4010.6,2.61737737]
[1760552855576,0.124,4011.3,4010.6,2.61737737]
[1760552855773,0.124,4011.3,4010.6,3.15744678]
[1760552855977,2.61697613,4011.3,4010.6,3.15744678]
[1760552856297,2.61697613,4011.3,4010.6,0.66406941]
[1760552856496,0.124,4011.3,4010.7,0.0249333]
[1760552856800,0.124,4011.3,4010.6,0.66406941]
[1760552856801,2.61701002,4011.3,4010.6,0.124]
[1760552857099,2.61701002,4011.3,4010.7,0.0249333]
[1760552857305,2.49303031,4011.2,4010.6,0.46146829]
[1760552857518,1.728,4012.3,4010.6,0.33746829]
[1760552857672,2.49319214,4011.0,4010.6,0.124]
[1760552857870,2.49326372,4010.9,4010.6,0.124]
[1760552858204,2.49314939,4011.0,4010.6,0.124]
[1760552858509,2.61708145,4011.2,4010.6,0.124]
[1760552858709,0.124,4011.2,4010.6,0.124]
[1760552858868,0.124,4011.2,4010.7,1.101]
[1760552859204,0.124,4011.8,4011.1,0.124]
[1760552859392,0.124,4011.8,4011.2,0.28664767]
[1760552859701,2.4927119,4011.7,4011.4,0.124]
[1760552859909,2.4927759,4011.6,4010.7,0.6336]
[1760552860107,0.124,4011.8,4011.1,0.124]
[1760552860412,2.49277096,4011.6,4011.1,0.124]
[1760552860777,2.49284236,4011.5,4011.1,0.124]
[1760552860976,0.124,4011.8,4011.1,0.124]
[1760552861313,2.49301954,4011.2,4010.8,0.124]
[1760552861722,2.49291773,4011.4,4010.8,0.124]
[1760552862417,2.49290468,4011.4,4010.8,0.124]
[1760552862820,2.49299271,4011.3,4010.8,0.124]
[1760552863517,0.124,4011.5,4010.8,0.124]
[1760552863882,2.49312647,4011.1,4010.8,0.124]
[1760552864081,2.49302761,4011.2,4010.8,0.124]
[1760552864312,0.124,4011.5,4010.8,0.124]
[1760552864729,2.49298119,4011.3,4010.0,0.2142]
[1760552864936,2.49365423,4010.2,4009.9,0.124]
[1760552865095,2.49333299,4010.7,4009.3,0.2142]
[1760552865286,2.49288307,4011.5,4009.5,0.124]
[1760552865287,2.61766922,4010.2,4009.5,0.124]
[1760552865492,2.4937101,4010.1,4009.5,0.124]
[1760552865692,0.124,4010.2,4009.5,0.124]
[1760552866013,2.49389103,4009.8,4009.5,0.124]
[1760552866240,2.49384304,4009.9,4009.5,0.124]
[1760552866446,2.4939784,4009.7,4009.5,0.124]
[1760552866787,2.4939784,4009.7,4008.9,1.9422]
[1760552866989,2.49408032,4009.5,4009.1,0.124]
[1760552867215,2.61790055,4009.8,4009.1,0.124]
[1760552867398,0.124,4009.8,4009.1,0.124]
[1760552867599,2.49395216,4009.7,4009.1,0.124]
[1760552867987,2.61789734,4009.8,4009.1,0.124]
[1760552868192,2.49396576,4009.7,4009.1,0.124]
[1760552868638,2.49401935,4009.6,4009.1,0.124]
[1760552868992,2.49408976,4009.5,4009.1,0.124]
[1760552869330,2.6178923,4009.8,4009.4,0.002]
[1760552869331,2.49395216,4009.7,4009.4,0.002]
[1760552869894,2.49402401,4009.6,4009.4,0.002]
[1760552870123,2.49395792,4009.7,4009.4,0.002]
[1760552870433,2.61790119,4009.8,4009.4,0.002]
[1760552870609,2.49395303,4009.7,4009.4,0.002]
[1760552870794,0.124,4009.8,4009.4,0.002]
[1760552870998,2.49407656,4009.5,4009.4,0.002]
[1760552875331,2.51910173,4009.5,4009.4,0.002]
[1760552875533,6.17070173,4009.5,4009.4,0.002]
[1760552875733,32.42167656,4009.5,4009.4,0.002]
[1760552875950,16.29167656,4009.5,4009.4,0.002]
[1760552876461,15.00167656,4009.5,4009.4,0.002]
[1760552876779,34.98400144,4009.5,4009.4,0.002]
[1760552877547,34.98400144,4009.5,4008.1,0.002]
[1760552877548,2.49488548,4008.2,4008.1,0.002]
[1760552882048,4.22288548,4008.2,4008.1,0.002]
[1760552885539,2.49488548,4008.2,4008.1,0.2375]
[1760552885740,2.49488548,4008.2,4008.1,0.6851]
[1760552886239,2.49488548,4008.2,4008.1,0.002]
[1760552888062,2.49480464,4008.4,4008.1,0.002]
[1760552888275,2.49488548,4008.2,4008.1,0.002]
[1760552891435,2.51991065,4008.2,4008.1,0.002]
[1760552891634,2.49488548,4008.2,4008.1,0.002]
[1760552891953,4.34694773,4008.1,4008.0,1e-08]
[1760552892142,4.22294773,4008.1,4008.0,1e-08]
[1760552892343,4.2479729,4008.1,4008.0,1e-08]
[1760552892753,4.22294773,4008.1,4008.0,1e-08]
[1760552896574,2.49519674,4007.7,4007.6,1e-08]
[1760552897555,4.88182191,4007.7,4007.6,1e-08]
[1760552897760,2.49569492,4006.9,4006.6,0.002]
[1760552898072,2.52072009,4006.9,4006.6,0.002]
[1760552898260,4.24872009,4006.9,4006.6,0.002]
[1760552898660,2.49594409,4006.5,4006.4,0.002]
[1760552898996,4.24896926,4006.5,4006.4,0.002]
[1760552899218,2.4961933,4006.1,4006.0,1e-08]
[1760552899496,4.24921847,4006.1,4006.0,1e-08]
[1760552899706,4.2241933,4006.1,4006.0,1e-08]
[1760552901061,4.88281847,4006.1,4006.0,1e-08]
[1760552901271,2.49700359,4004.8,4004.5,0.2257]
[1760552902782,2.52202876,4004.8,4004.5,0.2257]
[1760552903408,4.25002876,4004.8,4004.3,0.4573]
[1760552903572,2.49719066,4004.5,4003.8,0.4573]
[1760552903769,2.49719066,4004.5,4003.6,0.2257]
[1760552903770,4.25021583,4004.5,4003.6,0.2257]
[1760552904194,4.85879066,4004.5,4003.6,0.2257]
[1760552904574,32.38662517,4004.5,4003.0,0.6928]
[1760552904806,2.49781441,4003.5,4003.0,0.2355]
[1760552904990,4.25083958,4003.5,4003.0,0.2355]